bitfinex-derivatives/quotes_SOLF0:USTF0_20241101
["timestamp","ask_amount","ask_price","bid_price","bid_amount"]
[1730425975361,16.05058074,167.96,167.84,6.9256]
[1730425975565,9.45737748,167.95,167.84,6.9256]
[1730425975760,9.45737748,167.95,167.84,1.3515]
[1730425975969,9.45737748,167.95,167.83,5.3436]
[1730425975970,1.249,167.94,167.83,5.3436]
[1730425976472,2.9823,167.87,167.83,5.3436]
[1730425976768,1.249,167.94,167.83,5.3436]
[1730425976971,2.9815,167.91,167.84,2.9826]
[1730425977269,1.249,167.94,167.84,2.9826]
[1730425978066,1.249,167.94,167.83,5.3436]
[1730425978067,2.9824,167.86,167.83,5.3436]
[1730425978262,1.249,167.94,167.83,5.3436]
[1730425978672,1.249,167.94,167.83,1.3236]
[1730425978971,1.249,167.94,167.83,5.3436]
[1730425979367,16.05058074,167.93,167.8,2.625]
[1730425979671,9.45737748,167.92,167.81,4.02]
[1730425980072,1.3212,167.91,167.81,4.02]
[1730425981473,1.3212,167.91,167.8,4.0089]
[1730425981773,1.3212,167.91,167.81,4.02]
[1730425981968,2.982,167.88,167.81,4.02]
[1730425982168,1.3212,167.91,167.8,4.0089]
[1730425982476,2.9837,167.79,167.73,16.05058074]
[1730425982678,9.45737748,167.89,167.74,4.02]
[1730425982874,9.45737748,167.89,167.74,1.3289]
[1730425983171,2.9834,167.81,167.76,2.9841]
[1730425983575,9.45737748,167.89,167.76,2.9841]
[1730425985367,2.9834,167.8,167.75,7.0042]
[1730425985868,2.9839,167.78,167.75,4.02]
[1730425986069,4.02,167.86,167.74,1.3289]
[1730425986275,1.2701,167.85,167.74,1.3289]
[1730425986773,2.984,167.77,167.74,1.3289]
[1730425987572,2.9848,167.73,167.67,2.9856]
[1730425987769,20.07058074,167.8,167.65,2.6445]
[1730425987970,16.05058074,167.77,167.65,2.6445]
[1730425988171,2.9856,167.68,167.65,2.6445]
[1730425988368,4.02,167.74,167.65,2.6445]
[1730425988769,20.07058074,167.74,167.65,1.3285]
[1730425988969,20.07058074,167.74,167.6,16.05058074]
[1730425988970,20.07058074,167.74,167.6,2.987]
[1730425989282,20.07058074,167.74,167.53,16.05058074]
[1730425989283,16.05058074,167.7,167.53,16.05058074]
[1730425989574,16.05058074,167.7,167.55,5.6322]
[1730425989775,16.05058074,167.7,167.55,2.6445]
[1730425989972,16.05058074,167.67,167.55,2.6445]
[1730425990182,6.7031,167.66,167.55,2.6445]
[1730425990581,2.6831,167.66,167.55,2.6445]
[1730425991776,4.02,167.75,167.59,16.05058074]
[1730425991980,4.02,167.74,167.59,20.07058074]
[1730425992182,4.02,167.74,167.62,16.05058074]
[1730425992369,4.02,167.74,167.63,2.6438]
[1730425992975,2.9857,167.67,167.63,2.6438]
[1730425993680,4.02,167.74,167.63,2.6438]
[1730425993877,2.9852,167.7,167.63,2.6438]
[1730425994277,4.02,167.74,167.63,2.6438]
[1730425994988,2.9855,167.69,167.63,2.6438]
[1730425995173,4.02,167.74,167.63,2.6438]
[1730425996075,2.9851,167.71,167.63,5.6301]
[1730425996281,4.02,167.74,167.63,5.6301]
[1730425997380,2.9854,167.69,167.63,5.6301]
[1730425997584,4.02,167.74,167.63,2.6438]
[1730425998079,2.9852,167.71,167.65,2.9861]
[1730425998279,4.04,167.74,167.64,1.3611]
[1730425998785,2.9853,167.7,167.64,4.3473]
[1730426000777,4.04,167.74,167.64,1.3611]
[1730426000991,16.05058074,167.73,167.63,1.3731]
[1730426001487,2.9858,167.67,167.63,1.3731]
[1730426002887,2.9863,167.64,167.63,1.3731]
[1730426003088,4.04,167.68,167.58,1.2806]
[1730426003285,16.05058074,167.66,167.58,1.2806]
[1730426003592,20.09058074,167.66,167.58,1.2806]
[1730426004985,16.05058074,167.66,167.58,1.2806]
[1730426005691,2.9863,167.64,167.58,1.2806]
[1730426005991,6.5262,167.67,167.58,1.2806]
[1730426006194,2.9861,167.65,167.6,2.9869]
[1730426006396,3.9,167.71,167.59,1.2717]
[1730426006702,2.7287,167.76,167.59,1.2717]
[1730426006703,3.9,167.72,167.59,17.32228074]
[1730426006893,2.9855,167.69,167.63,2.9863]
[1730426007604,2.9851,167.71,167.65,2.986]
[1730426008296,3.9,167.75,167.65,2.986]
[1730426008492,2.9852,167.7,167.65,2.986]
[1730426008694,2.7287,167.76,167.66,2.9858]
[1730426008893,2.9851,167.71,167.67,1.3767]
[1730426011097,2.9855,167.69,167.67,1.3767]
[1730426012505,22.67928074,167.76,167.62,3.9]
[1730426013387,22.67928074,167.76,167.61,1.2562]
[1730426013388,16.05058074,167.73,167.61,1.2562]
[1730426014493,2.9864,167.64,167.61,1.2562]
[1730426014805,19.95058074,167.7,167.59,1.2717]
[1730426015102,2.9859,167.66,167.59,1.2717]
[1730426015297,1.3201,167.69,167.59,1.2717]
[1730426016694,2.9867,167.62,167.59,1.2717]
[1730426017502,2.9865,167.63,167.59,1.2717]
[1730426017694,1.3201,167.69,167.59,1.2717]
[1730426018803,5.2201,167.69,167.59,1.2717]
[1730426019505,2.9863,167.64,167.59,4.2588]
[1730426019703,5.2201,167.69,167.59,1.2717]
[1730426020397,2.9864,167.64,167.59,1.2717]
[1730426021404,2.9864,167.64,167.59,4.2588]
[1730426022404,1.3201,167.69,167.59,1.2717]
[1730426022607,2.9863,167.64,167.59,4.2588]
[1730426024312,2.9863,167.64,167.6,2.987]
[1730426024499,16.05058074,167.7,167.59,1.2717]
[1730426024704,2.986,167.66,167.59,1.2717]
[1730426025002,1.3741,167.75,167.59,1.2717]
[1730426025003,3.9,167.72,167.59,1.2717]
[1730426025211,3.9,167.72,167.6,3.9]
[1730426025601,19.95058074,167.73,167.6,3.9]
[1730426025804,3.9,167.74,167.6,19.95058074]
[1730426026305,2.9854,167.69,167.64,2.9862]
[1730426026514,5.2741,167.75,167.6,19.95058074]
[1730426027310,2.9852,167.7,167.6,19.95058074]
[1730426028108,2.9852,167.7,167.64,2.9861]
[1730426028311,2.9852,167.7,167.65,1.3155]
[1730426028502,5.2741,167.75,167.65,1.3155]
[1730426028700,2.9854,167.69,167.65,4.3016]
[1730426028909,5.2741,167.75,167.65,4.3016]
[1730426029211,5.2741,167.75,167.65,1.3155]
[1730426029510,2.9852,167.71,167.66,2.9858]
[1730426029908,5.2741,167.75,167.66,2.9858]
[1730426030105,2.9852,167.7,167.66,2.9858]
[1730426030813,2.985,167.71,167.66,2.9858]
[1730426032509,2.9848,167.72,167.65,1.3155]
[1730426032710,2.9848,167.72,167.66,1.3214]
[1730426033205,2.9848,167.72,167.67,2.9857]
[1730426035114,15.28373869,167.76,167.66,1.3214]
[1730426035415,10.03743869,167.74,167.66,1.3214]
[1730426035814,2.9853,167.7,167.66,1.3214]
[1730426037111,10.03743869,167.74,167.66,1.3214]
[1730426037412,2.9854,167.69,167.66,1.3214]
[1730426038018,10.03743869,167.74,167.65,1.3155]
[1730426038212,2.9857,167.67,167.65,1.3155]
[1730426038408,10.03743869,167.74,167.65,1.3155]
[1730426039110,10.03743869,167.74,167.66,2.9859]
[1730426039512,2.9852,167.7,167.65,1.3155]
[1730426039715,10.03743869,167.74,167.65,1.3155]
[1730426041019,2.9862,167.65,167.6,3.68]
[1730426041719,2.9862,167.65,167.6,6.6668]
[1730426042407,2.9864,167.64,167.6,3.68]
[1730426043319,2.9864,167.64,167.6,6.6669]
[1730426043916,2.9861,167.65,167.6,6.6669]
[1730426045420,2.9861,167.65,167.6,7.9559]
[1730426046515,2.9865,167.63,167.6,4.969]
[1730426049513,3.68,167.72,167.6,4.969]
[1730426049715,10.03743869,167.74,167.62,10.03743869]
[1730426050027,4.9411,167.75,167.64,10.03743869]
[1730426050228,2.9853,167.7,167.66,2.9858]
[1730426050519,2.9853,167.7,167.64,10.03743869]
[1730426050731,2.9853,167.7,167.65,2.9859]
[1730426051218,1.2611,167.75,167.61,1.3553]
[1730426051219,2.9858,167.67,167.62,2.9865]
[1730426051621,10.03743869,167.74,167.62,2.9865]
[1730426051822,10.03743869,167.72,167.62,2.9865]
[1730426052323,10.03743869,167.72,167.61,11.39273869]
[1730426052324,2.9857,167.68,167.63,2.9864]
[1730426052512,10.03743869,167.72,167.63,2.9864]
[1730426052916,10.03743869,167.72,167.61,11.39273869]
[1730426053116,10.03743869,167.72,167.62,2.9866]
[1730426053418,2.9858,167.67,167.62,2.9866]
[1730426054128,11.29853869,167.75,167.61,11.39273869]
[1730426054616,2.9855,167.69,167.64,2.9862]
[1730426055217,14.97853869,167.75,167.61,11.39273869]
[1730426055423,14.97853869,167.75,167.64,10.03743869]
[1730426055424,2.985,167.72,167.64,10.03743869]
[1730426055719,2.985,167.72,167.65,3.68]
[1730426056226,5.0263,167.76,167.65,3.68]
[1730426056227,2.9845,167.74,167.66,10.03743869]
[1730426056520,1.3463,167.76,167.7,2.9851]
[1730426056724,9.52382635,167.79,167.69,10.03743869]
[1730426056920,10.84152635,167.81,167.69,10.03743869]
[1730426057124,10.84152635,167.81,167.7,4.9542]
[1730426057318,10.03743869,167.8,167.7,3.68]
[1730426058120,10.84152635,167.81,167.71,10.03743869]
[1730426058624,2.9841,167.77,167.71,13.02233869]
[1730426058827,10.84152635,167.81,167.71,13.02233869]
[1730426059229,2.9841,167.77,167.71,13.02233869]
[1730426059422,10.84152635,167.81,167.71,10.03743869]
[1730426059619,2.9843,167.76,167.7,6.6652]
[1730426060126,10.84152635,167.81,167.7,6.6652]
[1730426060318,10.03743869,167.8,167.7,3.68]
[1730426060921,2.9846,167.74,167.7,3.68]
[1730426063330,2.9846,167.74,167.69,2.9854]
[1730426066033,2.9846,167.74,167.69,2.9853]
[1730426066224,2.9848,167.73,167.67,5.021]
[1730426066621,2.9848,167.73,167.68,2.9854]
[1730426067019,2.9848,167.73,167.67,5.021]
[1730426067020,10.03743869,167.75,167.67,1.341]
[1730426067219,1.2513,167.74,167.63,3.62]
[1730426067626,1.2513,167.74,167.64,2.9862]
[1730426068031,2.9854,167.69,167.65,2.986]
[1730426068423,2.9854,167.69,167.63,3.62]
[1730426068635,2.9854,167.69,167.64,2.9862]
[1730426068931,2.9856,167.68,167.64,2.9862]
[1730426069335,2.9856,167.68,167.63,3.62]
[1730426069530,2.9856,167.68,167.63,6.6064]
[1730426069726,10.03743869,167.72,167.63,6.6064]
[1730426069922,2.9859,167.67,167.63,6.6064]
[1730426071728,2.9859,167.67,167.64,2.9863]
[1730426071929,2.9859,167.67,167.63,3.62]
[1730426072428,2.9857,167.68,167.64,2.9862]
[1730426073628,2.986,167.66,167.63,3.62]
[1730426074834,2.9857,167.68,167.63,6.6064]
[1730426075828,2.5986,167.74,167.63,13.65743869]
[1730426076237,12.1172165,167.74,167.63,13.65743869]
[1730426077232,2.9851,167.71,167.66,2.9859]
[1730426077432,12.1172165,167.74,167.63,13.65743869]
[1730426077936,2.9852,167.7,167.66,2.9859]
[1730426078145,2.9852,167.7,167.63,13.65743869]
[1730426078741,10.7699165,167.74,167.63,13.65743869]
[1730426078935,1.2513,167.74,167.63,13.65743869]
[1730426079238,2.985,167.72,167.63,13.65743869]
[1730426079437,9.51916426,167.76,167.69,10.03743869]
[1730426079738,9.51916426,167.78,167.71,10.03743869]
[1730426079935,10.78496426,167.8,167.71,10.03743869]
[1730426080136,2.9839,167.78,167.73,2.9846]
[1730426080844,10.78496426,167.8,167.71,10.03743869]
[1730426081045,2.9836,167.79,167.74,2.9843]
[1730426081742,67.52335955,167.81,167.73,10.03743869]
[1730426081937,70.50665955,167.81,167.74,3.62]
[1730426082140,2.9833,167.81,167.74,3.62]
[1730426082445,2.9835,167.8,167.74,3.62]
[1730426082840,2.9835,167.8,167.74,6.6045]
[1730426083529,19.55396437,167.84,167.74,6.6045]
[1730426083735,10.03743869,167.84,167.74,6.6045]
[1730426084137,2.9836,167.8,167.74,6.6045]
[1730426084938,9.51480323,167.85,167.74,6.6045]
[1730426084939,9.51480323,167.85,167.76,10.03743869]
[1730426085137,2.9831,167.82,167.77,5.6542]
[1730426086141,2.9829,167.83,167.77,5.6542]
[1730426087534,2.9829,167.83,167.78,2.9838]
[1730426087739,2.9828,167.84,167.78,10.03743869]
[1730426088745,2.9828,167.84,167.79,2.9835]
[1730426089144,2.9828,167.84,167.79,6.6035]
[1730426090042,2.9829,167.83,167.79,6.6035]
[1730426092241,2.9827,167.84,167.8,2.9834]
[1730426092444,9.51189605,167.89,167.79,3.62]
[1730426094947,2.9827,167.84,167.79,6.6035]
[1730426096744,9.51189605,167.89,167.79,6.6035]
[1730426096745,19.54933474,167.89,167.79,3.62]
[1730426097248,19.54933474,167.89,167.78,1.2688]
[1730426097249,10.03743869,167.87,167.77,6.1703]
[1730426097449,2.9827,167.84,167.77,9.1541]
[1730426097644,10.03743869,167.87,167.77,9.1541]
[1730426098249,2.9827,167.84,167.77,9.1541]
[1730426098455,10.03743869,167.87,167.77,9.1541]
[1730426099254,2.983,167.83,167.77,9.1541]
[1730426099553,10.03743869,167.87,167.77,9.1541]
[1730426099752,2.983,167.83,167.78,2.9838]
[1730426099957,13.01189605,167.89,167.78,10.03743869]
[1730426102450,13.01189605,167.89,167.77,6.1703]
[1730426102954,2.9825,167.86,167.77,9.1541]
[1730426103145,13.01189605,167.89,167.77,9.1541]
[1730426103653,3.5,167.89,167.78,10.03743869]
[1730426104055,2.9824,167.86,167.78,10.03743869]
[1730426104256,2.9824,167.86,167.8,2.9833]
[1730426104644,3.5,167.89,167.8,2.9833]
[1730426104850,2.9827,167.85,167.8,2.9833]
[1730426105160,3.5,167.89,167.8,2.9833]
[1730426105750,2.9831,167.82,167.78,10.03743869]
[1730426105953,10.03743869,167.87,167.77,6.1703]
[1730426106261,2.9838,167.78,167.77,1.3593]
[1730426106462,2.9838,167.78,167.74,3.5]
[1730426107059,2.9838,167.78,167.74,6.4845]
[1730426107561,1.3218,167.84,167.74,3.5]
[1730426108355,2.9838,167.78,167.74,3.5]
[1730426109869,4.8218,167.84,167.72,2.6678]
[1730426109870,2.9843,167.75,167.72,2.6678]
[1730426110166,4.8218,167.84,167.68,10.03743869]
[1730426110167,10.03743869,167.8,167.68,10.03743869]
[1730426110367,2.9851,167.71,167.68,13.53743869]
[1730426110566,2.9851,167.71,167.68,3.5]
[1730426111769,1.2703,167.76,167.68,3.5]
[1730426112063,1.2703,167.76,167.65,10.03743869]
[1730426112268,2.9854,167.69,167.66,3.5]
[1730426112455,10.03743869,167.74,167.66,3.5]
[1730426113262,10.03743869,167.74,167.62,6.1164]
[1730426113263,2.9859,167.67,167.62,6.1164]
[1730426113469,10.03743869,167.72,167.62,6.1164]
[1730426114368,2.9858,167.67,167.62,6.1164]
[1730426114969,3.5,167.74,167.62,6.1164]
[1730426115268,3.5,167.74,167.62,9.1029]
[1730426115657,3.5,167.74,167.63,2.9864]
[1730426116371,3.5,167.74,167.62,6.1164]
[1730426117171,2.9857,167.68,167.62,5.603]
[1730426117366,3.5,167.74,167.58,11.34843869]
[1730426117367,10.03743869,167.7,167.58,11.34843869]
[1730426117568,6.0818,167.69,167.58,1.311]
[1730426117962,2.9866,167.62,167.58,1.311]
[1730426119073,2.9868,167.62,167.56,6.5076]
[1730426119472,10.03743869,167.67,167.56,3.52]
[1730426119663,2.9868,167.61,167.56,3.52]
[1730426120268,2.9868,167.61,167.54,1.2678]
[1730426120474,10.03743869,167.64,167.54,1.2678]
[1730426120975,2.9874,167.58,167.54,1.2678]
[1730426121176,10.03743869,167.64,167.54,1.2678]
[1730426121576,2.9872,167.59,167.54,1.2678]
[1730426122170,2.9867,167.62,167.56,2.9876]
[1730426122369,6.0818,167.69,167.55,10.03743869]
[1730426122772,2.9866,167.63,167.57,2.9874]
[1730426122973,6.0818,167.69,167.55,10.03743869]
[1730426122974,10.03743869,167.67,167.55,10.03743869]
[1730426123175,10.03743869,167.64,167.54,1.2678]
[1730426123380,2.9872,167.59,167.54,1.2678]
[1730426124073,2.9872,167.59,167.54,4.2558]
[1730426125973,2.987,167.6,167.55,2.9878]
[1730426126576,10.03743869,167.67,167.55,10.03743869]
[1730426126775,13.47743869,167.67,167.55,10.03743869]
[1730426126975,2.987,167.61,167.56,2.9877]
[1730426127181,13.47743869,167.67,167.55,10.03743869]
[1730426127372,10.03743869,167.65,167.54,1.2678]
[1730426127577,10.03743869,167.65,167.54,4.2557]
[1730426128178,2.9871,167.6,167.54,4.2557]
[1730426129074,2.9871,167.6,167.54,1.2678]
[1730426129385,2.9871,167.6,167.55,2.9878]
[1730426129591,10.03743869,167.65,167.54,1.2678]
[1730426130184,2.5618,167.69,167.57,10.03743869]
[1730426130482,2.986,167.66,167.58,3.44]
[1730426131288,2.986,167.66,167.61,2.9868]
[1730426131985,1.2807,167.69,167.6,10.03743869]
[1730426132193,1.2807,167.69,167.61,2.7009]
[1730426132487,2.9854,167.69,167.63,2.9863]
[1730426132692,81.03559757,167.72,167.63,2.9863]
[1730426133187,2.9859,167.66,167.61,5.6876]
[1730426134191,81.03559757,167.72,167.61,2.7009]
[1730426134385,2.9856,167.68,167.63,2.9864]
[1730426134589,81.03559757,167.72,167.62,10.03743869]
[1730426134889,2.9859,167.67,167.61,2.7009]
[1730426135086,81.03559757,167.72,167.61,5.6875]
[1730426135990,2.9859,167.67,167.61,5.6875]
[1730426136391,2.9859,167.67,167.61,2.7009]
[1730426136694,2.9859,167.67,167.62,2.9866]
[1730426137496,2.9859,167.66,167.61,5.6876]
[1730426138388,81.03559757,167.72,167.62,10.03743869]
[1730426138691,70.99815888,167.72,167.62,10.03743869]
[1730426138887,70.99815888,167.72,167.63,3.44]
[1730426138888,67.55815888,167.72,167.63,3.44]
[1730426139088,67.55815888,167.72,167.64,10.03743869]
[1730426139500,2.9852,167.7,167.64,10.03743869]
[1730426140295,2.9852,167.7,167.63,3.44]
[1730426140296,2.9854,167.69,167.65,2.986]
[1730426140499,2.9854,167.69,167.63,3.44]
[1730426140500,67.55815888,167.72,167.63,3.44]
[1730426142493,67.55815888,167.72,167.62,11.36673869]
[1730426142694,77.59559757,167.72,167.62,13.47743869]
[1730426143095,2.9854,167.69,167.62,13.47743869]
[1730426143295,67.55815888,167.72,167.63,1.3492]
[1730426143496,67.55815888,167.72,167.63,2.6985]
[1730426143695,2.9852,167.7,167.63,2.6985]
[1730426144601,2.9854,167.69,167.65,2.9861]
[1730426147503,2.9854,167.69,167.64,2.9861]
[1730426147901,2.9851,167.71,167.65,10.03743869]
[1730426148106,1.2839,167.74,167.65,10.03743869]
[1730426148407,1.2839,167.74,167.66,2.9859]
[1730426148611,2.9852,167.7,167.66,2.9859]
[1730426149109,2.9852,167.7,167.65,10.03743869]
[1730426149311,2.9854,167.69,167.65,2.9861]
[1730426150007,2.9852,167.7,167.65,2.9861]
[1730426150200,2.9852,167.7,167.63,3.9667]
[1730426150398,2.9852,167.7,167.64,3.44]
[1730426150798,1.2839,167.74,167.65,2.9859]
[1730426151005,2.9855,167.69,167.64,3.44]
[1730426151206,1.2839,167.74,167.64,3.44]
[1730426151399,2.9863,167.64,167.63,1.3492]
[1730426151604,2.9863,167.64,167.59,10.03743869]
[1730426151605,2.9863,167.64,167.6,3.44]
[1730426152512,2.9863,167.64,167.6,2.9869]
[1730426154518,10.03743869,167.73,167.59,13.47743869]
[1730426155017,10.03743869,167.73,167.63,2.9864]
[1730426155408,10.03743869,167.73,167.61,10.03743869]
[1730426155608,2.9857,167.68,167.63,2.9864]
[1730426156203,2.9858,167.67,167.63,2.9864]
[1730426157115,2.9856,167.68,167.64,2.9862]
[1730426157512,10.03743869,167.73,167.61,10.03743869]
[1730426157707,2.9856,167.68,167.63,2.9864]
[1730426158013,10.03743869,167.73,167.63,2.9864]
[1730426158215,2.9858,167.67,167.62,2.9865]
[1730426158710,2.9858,167.67,167.61,10.03743869]
[1730426159113,2.9857,167.68,167.64,2.9862]
[1730426159308,2.9857,167.68,167.61,10.03743869]
[1730426160209,10.03743869,167.73,167.61,10.03743869]
[1730426160411,2.9858,167.67,167.63,2.9863]
[1730426160608,10.03743869,167.73,167.61,10.03743869]
[1730426162006,17.94,167.72,167.45,35.80387932]
[1730426162307,10.03743869,167.61,167.49,10.03743869]
[1730426162508,2.9875,167.57,167.49,2.9888]
[1730426162722,13.35743869,167.61,167.49,2.9888]
[1730426162915,13.35743869,167.61,167.47,14.64063869]
[1730426162916,10.03743869,167.58,167.47,11.32063869]
[1730426163215,10.03743869,167.58,167.47,4.2725]
[1730426163416,10.03743869,167.58,167.47,1.2832]
[1730426163609,2.9879,167.55,167.47,1.2832]
[1730426163806,10.03743869,167.58,167.47,1.2832]
[1730426164009,13.35743869,167.58,167.47,11.32063869]
[1730426164209,10.03743869,167.61,167.49,10.03743869]
[1730426164516,3.32,167.6,167.49,10.03743869]
[1730426164717,3.32,167.6,167.47,11.32063869]
[1730426164913,2.9877,167.57,167.49,2.9889]
[1730426165112,3.32,167.6,167.49,2.9889]
[1730426165515,2.9875,167.57,167.51,2.9885]
[1730426165822,3.32,167.6,167.47,11.32063869]
[1730426166412,2.9875,167.57,167.5,2.9886]
[1730426166818,10.03743869,167.56,167.47,1.2832]
[1730426167016,10.03743869,167.56,167.46,1.3107]
[1730426167527,2.9889,167.5,167.46,1.3107]
[1730426167726,10.03743869,167.53,167.46,1.3107]
[1730426168414,2.9886,167.51,167.46,1.3107]
[1730426168605,10.03743869,167.53,167.46,1.3107]
[1730426168805,0.5411,167.59,167.48,10.03743869]
[1730426169012,10.03743869,167.6,167.48,10.03743869]
[1730426169522,2.988,167.55,167.47,6.5893]
[1730426170221,10.03743869,167.58,167.47,3.6]
[1730426170417,19.67703409,167.61,167.47,3.6]
[1730426170613,2.9875,167.57,167.48,2.989]
[1730426170812,3.6,167.59,167.47,3.6]
[1730426171321,2.9877,167.56,167.47,3.6]
[1730426171509,3.6,167.59,167.47,3.6]
[1730426171906,16.07703409,167.58,167.46,1.3107]
[1730426172217,16.61813409,167.58,167.46,1.3107]
[1730426172613,16.61813409,167.58,167.43,6.2181]
[1730426172920,2.9887,167.51,167.44,4.2718]
[1730426173124,16.61813409,167.58,167.44,1.2821]
[1730426173919,2.9885,167.52,167.45,2.9896]
[1730426174119,16.61813409,167.58,167.45,2.9896]
[1730426174521,2.988,167.55,167.45,2.9896]
[1730426174819,16.61813409,167.58,167.44,4.2719]
[1730426175211,2.9886,167.52,167.44,4.2719]
[1730426175412,2.9886,167.52,167.45,2.9896]
[1730426175609,16.61813409,167.58,167.44,17.35913409]
[1730426175813,3.6,167.57,167.44,17.35913409]
[1730426176024,16.61813409,167.58,167.44,17.35913409]
[1730426176222,20.21813409,167.58,167.44,17.35913409]
[1730426177320,2.9882,167.53,167.47,2.9893]
[1730426177623,20.21813409,167.58,167.47,2.9893]
[1730426177821,16.07703409,167.74,167.51,2.9885]
[1730426177822,2.9875,167.57,167.51,2.9885]
[1730426178037,2.9875,167.57,167.48,3.6]
[1730426178317,2.9882,167.54,167.46,2.9894]
[1730426178518,0.5407,167.58,167.46,2.9894]
[1730426178923,2.9882,167.54,167.46,2.9894]
[1730426179123,2.9882,167.54,167.44,20.95913409]
[1730426179819,16.07703409,167.51,167.41,2.9902]
[1730426180020,16.07703409,167.51,167.37,3.98]
[1730426180221,16.07703409,167.51,167.36,1.373]
[1730426180427,16.07703409,167.51,167.37,3.98]
[1730426180924,16.07703409,167.48,167.36,1.373]
[1730426181312,16.07703409,167.45,167.35,2.5681]
[1730426181519,20.47703409,167.48,167.35,2.5681]
[1730426182616,16.07703409,167.41,167.25,1.49659633]
[1730426182817,16.07703409,167.41,167.24,16.07703409]
[1730426183121,16.07703409,167.41,167.25,1.2698]
[1730426183617,16.61563409,167.41,167.25,1.2698]
[1730426184216,16.61563409,167.41,167.22,4.4]
[1730426184217,16.07703409,167.37,167.22,4.4]
[1730426184424,16.07703409,167.37,167.22,5.6698]
[1730426184626,2.9921,167.32,167.24,2.9933]
[1730426184923,2.9921,167.32,167.23,4.4]
[1730426186119,2.992,167.32,167.25,2.9932]
[1730426186316,16.07703409,167.37,167.23,4.4]
[1730426186723,4.4,167.36,167.23,4.4]
[1730426187227,16.07703409,167.31,167.2,2.6664]
[1730426187920,4.4,167.3,167.2,5.6605]
[1730426188528,2.9928,167.28,167.21,2.9939]
[1730426188730,4.4,167.3,167.2,2.6664]
[1730426188926,16.07703409,167.34,167.2,2.6664]
[1730426189229,67.71110073,167.36,167.2,2.6664]
[1730426189430,67.71110073,167.36,167.21,16.07703409]
[1730426189630,2.9917,167.34,167.22,4.4]
[1730426189928,67.71110073,167.36,167.22,4.4]
[1730426190131,2.9915,167.35,167.26,2.9929]
[1730426190327,67.71110073,167.36,167.23,1.2569]
[1730426190630,67.71110073,167.36,167.24,16.07703409]
[1730426190821,70.70240073,167.36,167.24,16.07703409]
[1730426191223,67.71110073,167.36,167.24,16.07703409]
[1730426191628,2.9914,167.35,167.28,2.9925]
[1730426192433,2.9914,167.35,167.26,4.4]
[1730426192434,2.9914,167.35,167.29,2.9924]
[1730426192633,2.9913,167.36,167.26,4.4]
[1730426193131,20.47703409,167.43,167.27,16.07703409]
[1730426193537,20.47703409,167.43,167.33,2.9918]
[1730426193538,16.07703409,167.43,167.33,2.9918]
[1730426193834,2.9906,167.4,167.33,2.9918]
[1730426194132,2.9904,167.41,167.34,2.9914]
[1730426194338,16.07703409,167.43,167.3,16.07703409]
[1730426194530,4.4,167.44,167.3,16.07703409]
[1730426194531,4.4,167.44,167.31,8.327]
[1730426194837,16.07703409,167.47,167.31,8.327]
[1730426195538,2.9901,167.43,167.37,2.9911]
[1730426196736,2.9897,167.45,167.38,2.9908]
[1730426196936,16.07703409,167.47,167.31,8.327]
[1730426197237,16.07703409,167.47,167.32,4.4]
[1730426197538,16.07703409,167.4,167.26,4.4]
[1730426199138,2.9912,167.37,167.3,2.9923]
[1730426199739,2.9914,167.36,167.29,2.9924]
[1730426199934,16.07703409,167.4,167.26,4.4]
[1730426200529,2.9913,167.36,167.3,2.9923]
[1730426200736,2.9913,167.36,167.26,4.4]
[1730426201338,16.07703409,167.4,167.26,4.4]
[1730426201533,0.539,167.41,167.27,16.07703409]
[1730426201741,16.07703409,167.44,167.27,16.07703409]
[1730426202741,16.07703409,167.44,167.32,2.992]